{"text_format":"1","workbook":"xlsx","n_sheets":8,"sheets":["как хочу","Статусы","Список оборудования","КПУ EBS","ДП","ТРП","ТРПШ","ТРПП"],"not_rendered":{"charts":0,"images":0,"macros":0,"external_links":0,"defined_names":1,"comments":0,"pivot_tables":0},"unopened":[],"bounds":{"document_bytes":16777216,"sheet_cells":100000,"rows_first":2000,"rows_last":500,"rows_between":2000,"halvings":0,"cell_chars":16384,"cell_head_chars":4096},"cells_cut":0,"cells_raw":0,"read":"whole","date_system":"1900"}

{"sheet":"как хочу","index":0,"n_rows":84,"n_cols":7,"rows_kept":84,"cut":false,"hidden":false,"merged":[]}
["Оборудование, шифр","Количество оборудования к запуску","Текущая дата","Столбец1","Для расчета",null,{"$f":"SUM(таблПоиск11[Столбец1])","v":30}]
["КПУ EBS",15,null,{"$f":"IF(таблПоиск11[[#This Row],[Оборудование, шифр]]=\"\",\"\",COUNTA(INDIRECT(\"'\"&таблПоиск11[[#This Row],[Оборудование, шифр]]&\"'!A:A\"))-1)","v":10},{"$f":"IF(таблПоиск11[[#This Row],[Оборудование, шифр]]=\"\",\"\",SUM($D$1:D1)+1)","v":1}]
["ДП",2,null,{"$f":"IF(таблПоиск11[[#This Row],[Оборудование, шифр]]=\"\",\"\",COUNTA(INDIRECT(\"'\"&таблПоиск11[[#This Row],[Оборудование, шифр]]&\"'!A:A\"))-1)","v":10},{"$f":"IF(таблПоиск11[[#This Row],[Оборудование, шифр]]=\"\",\"\",SUM($D$1:D2)+1)","v":11}]
["трп",2,null,{"$f":"IF(таблПоиск11[[#This Row],[Оборудование, шифр]]=\"\",\"\",COUNTA(INDIRECT(\"'\"&таблПоиск11[[#This Row],[Оборудование, шифр]]&\"'!A:A\"))-1)","v":10},{"$f":"IF(таблПоиск11[[#This Row],[Оборудование, шифр]]=\"\",\"\",SUM($D$1:D3)+1)","v":21}]
[null,null,null,{"$f":"IF(таблПоиск11[[#This Row],[Оборудование, шифр]]=\"\",\"\",COUNTA(INDIRECT(\"'\"&таблПоиск11[[#This Row],[Оборудование, шифр]]&\"'!A:A\"))-1)","v":""},{"$f":"IF(таблПоиск11[[#This Row],[Оборудование, шифр]]=\"\",\"\",SUM($D$1:D4)+1)","v":""}]
[null,null,null,{"$f":"IF(таблПоиск11[[#This Row],[Оборудование, шифр]]=\"\",\"\",COUNTA(INDIRECT(\"'\"&таблПоиск11[[#This Row],[Оборудование, шифр]]&\"'!A:A\"))-1)","v":""},{"$f":"IF(таблПоиск11[[#This Row],[Оборудование, шифр]]=\"\",\"\",SUM($D$1:D5)+1)","v":""}]
[null,null,null,{"$f":"IF(таблПоиск11[[#This Row],[Оборудование, шифр]]=\"\",\"\",COUNTA(INDIRECT(\"'\"&таблПоиск11[[#This Row],[Оборудование, шифр]]&\"'!A:A\"))-1)","v":""},{"$f":"IF(таблПоиск11[[#This Row],[Оборудование, шифр]]=\"\",\"\",SUM($D$1:D6)+1)","v":""}]
[null,null,null,{"$f":"IF(таблПоиск11[[#This Row],[Оборудование, шифр]]=\"\",\"\",COUNTA(INDIRECT(\"'\"&таблПоиск11[[#This Row],[Оборудование, шифр]]&\"'!A:A\"))-1)","v":""},{"$f":"IF(таблПоиск11[[#This Row],[Оборудование, шифр]]=\"\",\"\",SUM($D$1:D7)+1)","v":""}]
[null,null,null,{"$f":"IF(таблПоиск11[[#This Row],[Оборудование, шифр]]=\"\",\"\",COUNTA(INDIRECT(\"'\"&таблПоиск11[[#This Row],[Оборудование, шифр]]&\"'!A:A\"))-1)","v":""},{"$f":"IF(таблПоиск11[[#This Row],[Оборудование, шифр]]=\"\",\"\",SUM($D$1:D8)+1)","v":""}]
[null,null,null,{"$f":"IF(таблПоиск11[[#This Row],[Оборудование, шифр]]=\"\",\"\",COUNTA(INDIRECT(\"'\"&таблПоиск11[[#This Row],[Оборудование, шифр]]&\"'!A:A\"))-1)","v":""},{"$f":"IF(таблПоиск11[[#This Row],[Оборудование, шифр]]=\"\",\"\",SUM($D$1:D9)+1)","v":""}]
[null,null,null,{"$f":"IF(таблПоиск11[[#This Row],[Оборудование, шифр]]=\"\",\"\",COUNTA(INDIRECT(\"'\"&таблПоиск11[[#This Row],[Оборудование, шифр]]&\"'!A:A\"))-1)","v":""},{"$f":"IF(таблПоиск11[[#This Row],[Оборудование, шифр]]=\"\",\"\",SUM($D$1:D10)+1)","v":""}]
[]
[]
[]
["В столбце есть повторы строк, как их объединить, только учесть что столбец количество участвует в расчетах",null,null,"Как посчитать количество деталей? С условиме что эта ДСЕ относится к конкретной единице оборудования из столбца \"Оборудование, шифр\", формула ниже"]
[]
[null,null,null,"\"=В1*С20\""]
[]
["Шифр детали или СБ","Наименование детали или СБ","Количество ДСЕ в спецификации","Количество ДСЕ к запуску, расчетное","Остаток ДСЕ на складе","Статус запуска ДСЕ","Количество запущенных в производство ДСЕ"]
[{"$f":"IF(ROW(A1)>$G$1,\"\",INDIRECT(\"'\"&INDEX(таблПоиск11[Оборудование, шифр],MATCH(ROW(A1),таблПоиск11[Для расчета]))&\"'!\"&ADDRESS(ROW(A1)-INDEX(таблПоиск11[Для расчета],MATCH(ROW(A1),таблПоиск11[Для расчета]))+3,COLUMN())))","v":"EBС.01.000"},{"$f":"IF(ROW(A1)>$G$1,\"\",INDIRECT(\"'\"&INDEX(таблПоиск11[Оборудование, шифр],MATCH(ROW(A1),таблПоиск11[Для расчета]))&\"'!\"&ADDRESS(ROW(A1)-INDEX(таблПоиск11[Для расчета],MATCH(ROW(A1),таблПоиск11[Для расчета]))+3,COLUMN())))","v":"Кронштейн пушки"},{"$f":"IF(ROW(C1)>$G$1,\"\",INDIRECT(\"'\"&INDEX(таблПоиск11[Оборудование, шифр],MATCH(ROW(C1),таблПоиск11[Для расчета]))&\"'!\"&ADDRESS(ROW(C1)-INDEX(таблПоиск11[Для расчета],MATCH(ROW(C1),таблПоиск11[Для расчета]))+3,COLUMN())))","v":1}]
[{"$f":"IF(ROW(A2)>$G$1,\"\",INDIRECT(\"'\"&INDEX(таблПоиск11[Оборудование, шифр],MATCH(ROW(A2),таблПоиск11[Для расчета]))&\"'!\"&ADDRESS(ROW(A2)-INDEX(таблПоиск11[Для расчета],MATCH(ROW(A2),таблПоиск11[Для расчета]))+3,COLUMN())))","v":"ЕВС.01.001"},{"$f":"IF(ROW(A2)>$G$1,\"\",INDIRECT(\"'\"&INDEX(таблПоиск11[Оборудование, шифр],MATCH(ROW(A2),таблПоиск11[Для расчета]))&\"'!\"&ADDRESS(ROW(A2)-INDEX(таблПоиск11[Для расчета],MATCH(ROW(A2),таблПоиск11[Для расчета]))+3,COLUMN())))","v":"Скоба"},{"$f":"IF(ROW(C2)>$G$1,\"\",INDIRECT(\"'\"&INDEX(таблПоиск11[Оборудование, шифр],MATCH(ROW(C2),таблПоиск11[Для расчета]))&\"'!\"&ADDRESS(ROW(C2)-INDEX(таблПоиск11[Для расчета],MATCH(ROW(C2),таблПоиск11[Для расчета]))+3,COLUMN())))","v":1}]
[{"$f":"IF(ROW(A3)>$G$1,\"\",INDIRECT(\"'\"&INDEX(таблПоиск11[Оборудование, шифр],MATCH(ROW(A3),таблПоиск11[Для расчета]))&\"'!\"&ADDRESS(ROW(A3)-INDEX(таблПоиск11[Для расчета],MATCH(ROW(A3),таблПоиск11[Для расчета]))+3,COLUMN())))","v":"EBС.00.001"},{"$f":"IF(ROW(A3)>$G$1,\"\",INDIRECT(\"'\"&INDEX(таблПоиск11[Оборудование, шифр],MATCH(ROW(A3),таблПоиск11[Для расчета]))&\"'!\"&ADDRESS(ROW(A3)-INDEX(таблПоиск11[Для расчета],MATCH(ROW(A3),таблПоиск11[Для расчета]))+3,COLUMN())))","v":"Кронштейн"},{"$f":"IF(ROW(C3)>$G$1,\"\",INDIRECT(\"'\"&INDEX(таблПоиск11[Оборудование, шифр],MATCH(ROW(C3),таблПоиск11[Для расчета]))&\"'!\"&ADDRESS(ROW(C3)-INDEX(таблПоиск11[Для расчета],MATCH(ROW(C3),таблПоиск11[Для расчета]))+3,COLUMN())))","v":1}]
[{"$f":"IF(ROW(A4)>$G$1,\"\",INDIRECT(\"'\"&INDEX(таблПоиск11[Оборудование, шифр],MATCH(ROW(A4),таблПоиск11[Для расчета]))&\"'!\"&ADDRESS(ROW(A4)-INDEX(таблПоиск11[Для расчета],MATCH(ROW(A4),таблПоиск11[Для расчета]))+3,COLUMN())))","v":"EBС.00.004"},{"$f":"IF(ROW(A4)>$G$1,\"\",INDIRECT(\"'\"&INDEX(таблПоиск11[Оборудование, шифр],MATCH(ROW(A4),таблПоиск11[Для расчета]))&\"'!\"&ADDRESS(ROW(A4)-INDEX(таблПоиск11[Для расчета],MATCH(ROW(A4),таблПоиск11[Для расчета]))+3,COLUMN())))","v":"Грибок"},{"$f":"IF(ROW(C4)>$G$1,\"\",INDIRECT(\"'\"&INDEX(таблПоиск11[Оборудование, шифр],MATCH(ROW(C4),таблПоиск11[Для расчета]))&\"'!\"&ADDRESS(ROW(C4)-INDEX(таблПоиск11[Для расчета],MATCH(ROW(C4),таблПоиск11[Для расчета]))+3,COLUMN())))","v":3}]
[{"$f":"IF(ROW(A5)>$G$1,\"\",INDIRECT(\"'\"&INDEX(таблПоиск11[Оборудование, шифр],MATCH(ROW(A5),таблПоиск11[Для расчета]))&\"'!\"&ADDRESS(ROW(A5)-INDEX(таблПоиск11[Для расчета],MATCH(ROW(A5),таблПоиск11[Для расчета]))+3,COLUMN())))","v":"EBС.00.005"},{"$f":"IF(ROW(A5)>$G$1,\"\",INDIRECT(\"'\"&INDEX(таблПоиск11[Оборудование, шифр],MATCH(ROW(A5),таблПоиск11[Для расчета]))&\"'!\"&ADDRESS(ROW(A5)-INDEX(таблПоиск11[Для расчета],MATCH(ROW(A5),таблПоиск11[Для расчета]))+3,COLUMN())))","v":"Полка"},{"$f":"IF(ROW(C5)>$G$1,\"\",INDIRECT(\"'\"&INDEX(таблПоиск11[Оборудование, шифр],MATCH(ROW(C5),таблПоиск11[Для расчета]))&\"'!\"&ADDRESS(ROW(C5)-INDEX(таблПоиск11[Для расчета],MATCH(ROW(C5),таблПоиск11[Для расчета]))+3,COLUMN())))","v":1}]
[{"$f":"IF(ROW(A6)>$G$1,\"\",INDIRECT(\"'\"&INDEX(таблПоиск11[Оборудование, шифр],MATCH(ROW(A6),таблПоиск11[Для расчета]))&\"'!\"&ADDRESS(ROW(A6)-INDEX(таблПоиск11[Для расчета],MATCH(ROW(A6),таблПоиск11[Для расчета]))+3,COLUMN())))","v":"EBС.00.006"},{"$f":"IF(ROW(A6)>$G$1,\"\",INDIRECT(\"'\"&INDEX(таблПоиск11[Оборудование, шифр],MATCH(ROW(A6),таблПоиск11[Для расчета]))&\"'!\"&ADDRESS(ROW(A6)-INDEX(таблПоиск11[Для расчета],MATCH(ROW(A6),таблПоиск11[Для расчета]))+3,COLUMN())))","v":"Держатель"},{"$f":"IF(ROW(C6)>$G$1,\"\",INDIRECT(\"'\"&INDEX(таблПоиск11[Оборудование, шифр],MATCH(ROW(C6),таблПоиск11[Для расчета]))&\"'!\"&ADDRESS(ROW(C6)-INDEX(таблПоиск11[Для расчета],MATCH(ROW(C6),таблПоиск11[Для расчета]))+3,COLUMN())))","v":2}]
[{"$f":"IF(ROW(A7)>$G$1,\"\",INDIRECT(\"'\"&INDEX(таблПоиск11[Оборудование, шифр],MATCH(ROW(A7),таблПоиск11[Для расчета]))&\"'!\"&ADDRESS(ROW(A7)-INDEX(таблПоиск11[Для расчета],MATCH(ROW(A7),таблПоиск11[Для расчета]))+3,COLUMN())))","v":"ЕБС.00.007"},{"$f":"IF(ROW(A7)>$G$1,\"\",INDIRECT(\"'\"&INDEX(таблПоиск11[Оборудование, шифр],MATCH(ROW(A7),таблПоиск11[Для расчета]))&\"'!\"&ADDRESS(ROW(A7)-INDEX(таблПоиск11[Для расчета],MATCH(ROW(A7),таблПоиск11[Для расчета]))+3,COLUMN())))","v":"Пластина"},{"$f":"IF(ROW(C7)>$G$1,\"\",INDIRECT(\"'\"&INDEX(таблПоиск11[Оборудование, шифр],MATCH(ROW(C7),таблПоиск11[Для расчета]))&\"'!\"&ADDRESS(ROW(C7)-INDEX(таблПоиск11[Для расчета],MATCH(ROW(C7),таблПоиск11[Для расчета]))+3,COLUMN())))","v":2}]
[{"$f":"IF(ROW(A8)>$G$1,\"\",INDIRECT(\"'\"&INDEX(таблПоиск11[Оборудование, шифр],MATCH(ROW(A8),таблПоиск11[Для расчета]))&\"'!\"&ADDRESS(ROW(A8)-INDEX(таблПоиск11[Для расчета],MATCH(ROW(A8),таблПоиск11[Для расчета]))+3,COLUMN())))","v":"ЕВС.01.002"},{"$f":"IF(ROW(A8)>$G$1,\"\",INDIRECT(\"'\"&INDEX(таблПоиск11[Оборудование, шифр],MATCH(ROW(A8),таблПоиск11[Для расчета]))&\"'!\"&ADDRESS(ROW(A8)-INDEX(таблПоиск11[Для расчета],MATCH(ROW(A8),таблПоиск11[Для расчета]))+3,COLUMN())))","v":"Трубка 16х1.5 08X18H10 L=800"},{"$f":"IF(ROW(C8)>$G$1,\"\",INDIRECT(\"'\"&INDEX(таблПоиск11[Оборудование, шифр],MATCH(ROW(C8),таблПоиск11[Для расчета]))&\"'!\"&ADDRESS(ROW(C8)-INDEX(таблПоиск11[Для расчета],MATCH(ROW(C8),таблПоиск11[Для расчета]))+3,COLUMN())))","v":1}]
[{"$f":"IF(ROW(A9)>$G$1,\"\",INDIRECT(\"'\"&INDEX(таблПоиск11[Оборудование, шифр],MATCH(ROW(A9),таблПоиск11[Для расчета]))&\"'!\"&ADDRESS(ROW(A9)-INDEX(таблПоиск11[Для расчета],MATCH(ROW(A9),таблПоиск11[Для расчета]))+3,COLUMN())))","v":"EBС.00.002"},{"$f":"IF(ROW(A9)>$G$1,\"\",INDIRECT(\"'\"&INDEX(таблПоиск11[Оборудование, шифр],MATCH(ROW(A9),таблПоиск11[Для расчета]))&\"'!\"&ADDRESS(ROW(A9)-INDEX(таблПоиск11[Для расчета],MATCH(ROW(A9),таблПоиск11[Для расчета]))+3,COLUMN())))","v":"Труба 48.3х1.5 08X18H10 L=780"},{"$f":"IF(ROW(C9)>$G$1,\"\",INDIRECT(\"'\"&INDEX(таблПоиск11[Оборудование, шифр],MATCH(ROW(C9),таблПоиск11[Для расчета]))&\"'!\"&ADDRESS(ROW(C9)-INDEX(таблПоиск11[Для расчета],MATCH(ROW(C9),таблПоиск11[Для расчета]))+3,COLUMN())))","v":2}]
[{"$f":"IF(ROW(A10)>$G$1,\"\",INDIRECT(\"'\"&INDEX(таблПоиск11[Оборудование, шифр],MATCH(ROW(A10),таблПоиск11[Для расчета]))&\"'!\"&ADDRESS(ROW(A10)-INDEX(таблПоиск11[Для расчета],MATCH(ROW(A10),таблПоиск11[Для расчета]))+3,COLUMN())))","v":"EBС.00.003"},{"$f":"IF(ROW(A10)>$G$1,\"\",INDIRECT(\"'\"&INDEX(таблПоиск11[Оборудование, шифр],MATCH(ROW(A10),таблПоиск11[Для расчета]))&\"'!\"&ADDRESS(ROW(A10)-INDEX(таблПоиск11[Для расчета],MATCH(ROW(A10),таблПоиск11[Для расчета]))+3,COLUMN())))","v":"Труба 42.4х1.5 08X18H10 L=315"},{"$f":"IF(ROW(C10)>$G$1,\"\",INDIRECT(\"'\"&INDEX(таблПоиск11[Оборудование, шифр],MATCH(ROW(C10),таблПоиск11[Для расчета]))&\"'!\"&ADDRESS(ROW(C10)-INDEX(таблПоиск11[Для расчета],MATCH(ROW(C10),таблПоиск11[Для расчета]))+3,COLUMN())))","v":1}]
[{"$f":"IF(ROW(A11)>$G$1,\"\",INDIRECT(\"'\"&INDEX(таблПоиск11[Оборудование, шифр],MATCH(ROW(A11),таблПоиск11[Для расчета]))&\"'!\"&ADDRESS(ROW(A11)-INDEX(таблПоиск11[Для расчета],MATCH(ROW(A11),таблПоиск11[Для расчета]))+3,COLUMN())))","v":"ДП1"},{"$f":"IF(ROW(A11)>$G$1,\"\",INDIRECT(\"'\"&INDEX(таблПоиск11[Оборудование, шифр],MATCH(ROW(A11),таблПоиск11[Для расчета]))&\"'!\"&ADDRESS(ROW(A11)-INDEX(таблПоиск11[Для расчета],MATCH(ROW(A11),таблПоиск11[Для расчета]))+3,COLUMN())))","v":"Кронштейн пушки"},{"$f":"IF(ROW(C11)>$G$1,\"\",INDIRECT(\"'\"&INDEX(таблПоиск11[Оборудование, шифр],MATCH(ROW(C11),таблПоиск11[Для расчета]))&\"'!\"&ADDRESS(ROW(C11)-INDEX(таблПоиск11[Для расчета],MATCH(ROW(C11),таблПоиск11[Для расчета]))+3,COLUMN())))","v":1}]
[{"$f":"IF(ROW(A12)>$G$1,\"\",INDIRECT(\"'\"&INDEX(таблПоиск11[Оборудование, шифр],MATCH(ROW(A12),таблПоиск11[Для расчета]))&\"'!\"&ADDRESS(ROW(A12)-INDEX(таблПоиск11[Для расчета],MATCH(ROW(A12),таблПоиск11[Для расчета]))+3,COLUMN())))","v":"ДП2"},{"$f":"IF(ROW(A12)>$G$1,\"\",INDIRECT(\"'\"&INDEX(таблПоиск11[Оборудование, шифр],MATCH(ROW(A12),таблПоиск11[Для расчета]))&\"'!\"&ADDRESS(ROW(A12)-INDEX(таблПоиск11[Для расчета],MATCH(ROW(A12),таблПоиск11[Для расчета]))+3,COLUMN())))","v":"Скоба"},{"$f":"IF(ROW(C12)>$G$1,\"\",INDIRECT(\"'\"&INDEX(таблПоиск11[Оборудование, шифр],MATCH(ROW(C12),таблПоиск11[Для расчета]))&\"'!\"&ADDRESS(ROW(C12)-INDEX(таблПоиск11[Для расчета],MATCH(ROW(C12),таблПоиск11[Для расчета]))+3,COLUMN())))","v":1}]
[{"$f":"IF(ROW(A13)>$G$1,\"\",INDIRECT(\"'\"&INDEX(таблПоиск11[Оборудование, шифр],MATCH(ROW(A13),таблПоиск11[Для расчета]))&\"'!\"&ADDRESS(ROW(A13)-INDEX(таблПоиск11[Для расчета],MATCH(ROW(A13),таблПоиск11[Для расчета]))+3,COLUMN())))","v":"ДП3"},{"$f":"IF(ROW(A13)>$G$1,\"\",INDIRECT(\"'\"&INDEX(таблПоиск11[Оборудование, шифр],MATCH(ROW(A13),таблПоиск11[Для расчета]))&\"'!\"&ADDRESS(ROW(A13)-INDEX(таблПоиск11[Для расчета],MATCH(ROW(A13),таблПоиск11[Для расчета]))+3,COLUMN())))","v":"Кронштейн"},{"$f":"IF(ROW(C13)>$G$1,\"\",INDIRECT(\"'\"&INDEX(таблПоиск11[Оборудование, шифр],MATCH(ROW(C13),таблПоиск11[Для расчета]))&\"'!\"&ADDRESS(ROW(C13)-INDEX(таблПоиск11[Для расчета],MATCH(ROW(C13),таблПоиск11[Для расчета]))+3,COLUMN())))","v":1}]
[{"$f":"IF(ROW(A14)>$G$1,\"\",INDIRECT(\"'\"&INDEX(таблПоиск11[Оборудование, шифр],MATCH(ROW(A14),таблПоиск11[Для расчета]))&\"'!\"&ADDRESS(ROW(A14)-INDEX(таблПоиск11[Для расчета],MATCH(ROW(A14),таблПоиск11[Для расчета]))+3,COLUMN())))","v":"ДП4"},{"$f":"IF(ROW(A14)>$G$1,\"\",INDIRECT(\"'\"&INDEX(таблПоиск11[Оборудование, шифр],MATCH(ROW(A14),таблПоиск11[Для расчета]))&\"'!\"&ADDRESS(ROW(A14)-INDEX(таблПоиск11[Для расчета],MATCH(ROW(A14),таблПоиск11[Для расчета]))+3,COLUMN())))","v":"Грибок"},{"$f":"IF(ROW(C14)>$G$1,\"\",INDIRECT(\"'\"&INDEX(таблПоиск11[Оборудование, шифр],MATCH(ROW(C14),таблПоиск11[Для расчета]))&\"'!\"&ADDRESS(ROW(C14)-INDEX(таблПоиск11[Для расчета],MATCH(ROW(C14),таблПоиск11[Для расчета]))+3,COLUMN())))","v":3}]
[{"$f":"IF(ROW(A15)>$G$1,\"\",INDIRECT(\"'\"&INDEX(таблПоиск11[Оборудование, шифр],MATCH(ROW(A15),таблПоиск11[Для расчета]))&\"'!\"&ADDRESS(ROW(A15)-INDEX(таблПоиск11[Для расчета],MATCH(ROW(A15),таблПоиск11[Для расчета]))+3,COLUMN())))","v":"ДП5"},{"$f":"IF(ROW(A15)>$G$1,\"\",INDIRECT(\"'\"&INDEX(таблПоиск11[Оборудование, шифр],MATCH(ROW(A15),таблПоиск11[Для расчета]))&\"'!\"&ADDRESS(ROW(A15)-INDEX(таблПоиск11[Для расчета],MATCH(ROW(A15),таблПоиск11[Для расчета]))+3,COLUMN())))","v":"Полка"},{"$f":"IF(ROW(C15)>$G$1,\"\",INDIRECT(\"'\"&INDEX(таблПоиск11[Оборудование, шифр],MATCH(ROW(C15),таблПоиск11[Для расчета]))&\"'!\"&ADDRESS(ROW(C15)-INDEX(таблПоиск11[Для расчета],MATCH(ROW(C15),таблПоиск11[Для расчета]))+3,COLUMN())))","v":1}]
[{"$f":"IF(ROW(A16)>$G$1,\"\",INDIRECT(\"'\"&INDEX(таблПоиск11[Оборудование, шифр],MATCH(ROW(A16),таблПоиск11[Для расчета]))&\"'!\"&ADDRESS(ROW(A16)-INDEX(таблПоиск11[Для расчета],MATCH(ROW(A16),таблПоиск11[Для расчета]))+3,COLUMN())))","v":"ДП6"},{"$f":"IF(ROW(A16)>$G$1,\"\",INDIRECT(\"'\"&INDEX(таблПоиск11[Оборудование, шифр],MATCH(ROW(A16),таблПоиск11[Для расчета]))&\"'!\"&ADDRESS(ROW(A16)-INDEX(таблПоиск11[Для расчета],MATCH(ROW(A16),таблПоиск11[Для расчета]))+3,COLUMN())))","v":"Держатель"},{"$f":"IF(ROW(C16)>$G$1,\"\",INDIRECT(\"'\"&INDEX(таблПоиск11[Оборудование, шифр],MATCH(ROW(C16),таблПоиск11[Для расчета]))&\"'!\"&ADDRESS(ROW(C16)-INDEX(таблПоиск11[Для расчета],MATCH(ROW(C16),таблПоиск11[Для расчета]))+3,COLUMN())))","v":2}]
[{"$f":"IF(ROW(A17)>$G$1,\"\",INDIRECT(\"'\"&INDEX(таблПоиск11[Оборудование, шифр],MATCH(ROW(A17),таблПоиск11[Для расчета]))&\"'!\"&ADDRESS(ROW(A17)-INDEX(таблПоиск11[Для расчета],MATCH(ROW(A17),таблПоиск11[Для расчета]))+3,COLUMN())))","v":"ДП7"},{"$f":"IF(ROW(A17)>$G$1,\"\",INDIRECT(\"'\"&INDEX(таблПоиск11[Оборудование, шифр],MATCH(ROW(A17),таблПоиск11[Для расчета]))&\"'!\"&ADDRESS(ROW(A17)-INDEX(таблПоиск11[Для расчета],MATCH(ROW(A17),таблПоиск11[Для расчета]))+3,COLUMN())))","v":"Пластина"},{"$f":"IF(ROW(C17)>$G$1,\"\",INDIRECT(\"'\"&INDEX(таблПоиск11[Оборудование, шифр],MATCH(ROW(C17),таблПоиск11[Для расчета]))&\"'!\"&ADDRESS(ROW(C17)-INDEX(таблПоиск11[Для расчета],MATCH(ROW(C17),таблПоиск11[Для расчета]))+3,COLUMN())))","v":2}]
[{"$f":"IF(ROW(A18)>$G$1,\"\",INDIRECT(\"'\"&INDEX(таблПоиск11[Оборудование, шифр],MATCH(ROW(A18),таблПоиск11[Для расчета]))&\"'!\"&ADDRESS(ROW(A18)-INDEX(таблПоиск11[Для расчета],MATCH(ROW(A18),таблПоиск11[Для расчета]))+3,COLUMN())))","v":"ДП8"},{"$f":"IF(ROW(A18)>$G$1,\"\",INDIRECT(\"'\"&INDEX(таблПоиск11[Оборудование, шифр],MATCH(ROW(A18),таблПоиск11[Для расчета]))&\"'!\"&ADDRESS(ROW(A18)-INDEX(таблПоиск11[Для расчета],MATCH(ROW(A18),таблПоиск11[Для расчета]))+3,COLUMN())))","v":"Трубка 16х1.5 08X18H10 L=800"},{"$f":"IF(ROW(C18)>$G$1,\"\",INDIRECT(\"'\"&INDEX(таблПоиск11[Оборудование, шифр],MATCH(ROW(C18),таблПоиск11[Для расчета]))&\"'!\"&ADDRESS(ROW(C18)-INDEX(таблПоиск11[Для расчета],MATCH(ROW(C18),таблПоиск11[Для расчета]))+3,COLUMN())))","v":1}]
[{"$f":"IF(ROW(A19)>$G$1,\"\",INDIRECT(\"'\"&INDEX(таблПоиск11[Оборудование, шифр],MATCH(ROW(A19),таблПоиск11[Для расчета]))&\"'!\"&ADDRESS(ROW(A19)-INDEX(таблПоиск11[Для расчета],MATCH(ROW(A19),таблПоиск11[Для расчета]))+3,COLUMN())))","v":"ДП9"},{"$f":"IF(ROW(A19)>$G$1,\"\",INDIRECT(\"'\"&INDEX(таблПоиск11[Оборудование, шифр],MATCH(ROW(A19),таблПоиск11[Для расчета]))&\"'!\"&ADDRESS(ROW(A19)-INDEX(таблПоиск11[Для расчета],MATCH(ROW(A19),таблПоиск11[Для расчета]))+3,COLUMN())))","v":"Труба 48.3х1.5 08X18H10 L=780"},{"$f":"IF(ROW(C19)>$G$1,\"\",INDIRECT(\"'\"&INDEX(таблПоиск11[Оборудование, шифр],MATCH(ROW(C19),таблПоиск11[Для расчета]))&\"'!\"&ADDRESS(ROW(C19)-INDEX(таблПоиск11[Для расчета],MATCH(ROW(C19),таблПоиск11[Для расчета]))+3,COLUMN())))","v":2}]
[{"$f":"IF(ROW(A20)>$G$1,\"\",INDIRECT(\"'\"&INDEX(таблПоиск11[Оборудование, шифр],MATCH(ROW(A20),таблПоиск11[Для расчета]))&\"'!\"&ADDRESS(ROW(A20)-INDEX(таблПоиск11[Для расчета],MATCH(ROW(A20),таблПоиск11[Для расчета]))+3,COLUMN())))","v":"EBС.00.003"},{"$f":"IF(ROW(A20)>$G$1,\"\",INDIRECT(\"'\"&INDEX(таблПоиск11[Оборудование, шифр],MATCH(ROW(A20),таблПоиск11[Для расчета]))&\"'!\"&ADDRESS(ROW(A20)-INDEX(таблПоиск11[Для расчета],MATCH(ROW(A20),таблПоиск11[Для расчета]))+3,COLUMN())))","v":"Труба 42.4х1.5 08X18H10 L=315"},{"$f":"IF(ROW(C20)>$G$1,\"\",INDIRECT(\"'\"&INDEX(таблПоиск11[Оборудование, шифр],MATCH(ROW(C20),таблПоиск11[Для расчета]))&\"'!\"&ADDRESS(ROW(C20)-INDEX(таблПоиск11[Для расчета],MATCH(ROW(C20),таблПоиск11[Для расчета]))+3,COLUMN())))","v":1}]
[{"$f":"IF(ROW(A21)>$G$1,\"\",INDIRECT(\"'\"&INDEX(таблПоиск11[Оборудование, шифр],MATCH(ROW(A21),таблПоиск11[Для расчета]))&\"'!\"&ADDRESS(ROW(A21)-INDEX(таблПоиск11[Для расчета],MATCH(ROW(A21),таблПоиск11[Для расчета]))+3,COLUMN())))","v":"EBС.01.000"},{"$f":"IF(ROW(A21)>$G$1,\"\",INDIRECT(\"'\"&INDEX(таблПоиск11[Оборудование, шифр],MATCH(ROW(A21),таблПоиск11[Для расчета]))&\"'!\"&ADDRESS(ROW(A21)-INDEX(таблПоиск11[Для расчета],MATCH(ROW(A21),таблПоиск11[Для расчета]))+3,COLUMN())))","v":"Кронштейн пушки"},{"$f":"IF(ROW(C21)>$G$1,\"\",INDIRECT(\"'\"&INDEX(таблПоиск11[Оборудование, шифр],MATCH(ROW(C21),таблПоиск11[Для расчета]))&\"'!\"&ADDRESS(ROW(C21)-INDEX(таблПоиск11[Для расчета],MATCH(ROW(C21),таблПоиск11[Для расчета]))+3,COLUMN())))","v":1}]
[{"$f":"IF(ROW(A22)>$G$1,\"\",INDIRECT(\"'\"&INDEX(таблПоиск11[Оборудование, шифр],MATCH(ROW(A22),таблПоиск11[Для расчета]))&\"'!\"&ADDRESS(ROW(A22)-INDEX(таблПоиск11[Для расчета],MATCH(ROW(A22),таблПоиск11[Для расчета]))+3,COLUMN())))","v":"ТРП1"},{"$f":"IF(ROW(A22)>$G$1,\"\",INDIRECT(\"'\"&INDEX(таблПоиск11[Оборудование, шифр],MATCH(ROW(A22),таблПоиск11[Для расчета]))&\"'!\"&ADDRESS(ROW(A22)-INDEX(таблПоиск11[Для расчета],MATCH(ROW(A22),таблПоиск11[Для расчета]))+3,COLUMN())))","v":"Скоба"},{"$f":"IF(ROW(C22)>$G$1,\"\",INDIRECT(\"'\"&INDEX(таблПоиск11[Оборудование, шифр],MATCH(ROW(C22),таблПоиск11[Для расчета]))&\"'!\"&ADDRESS(ROW(C22)-INDEX(таблПоиск11[Для расчета],MATCH(ROW(C22),таблПоиск11[Для расчета]))+3,COLUMN())))","v":1}]
[{"$f":"IF(ROW(A23)>$G$1,\"\",INDIRECT(\"'\"&INDEX(таблПоиск11[Оборудование, шифр],MATCH(ROW(A23),таблПоиск11[Для расчета]))&\"'!\"&ADDRESS(ROW(A23)-INDEX(таблПоиск11[Для расчета],MATCH(ROW(A23),таблПоиск11[Для расчета]))+3,COLUMN())))","v":"ТРП2"},{"$f":"IF(ROW(A23)>$G$1,\"\",INDIRECT(\"'\"&INDEX(таблПоиск11[Оборудование, шифр],MATCH(ROW(A23),таблПоиск11[Для расчета]))&\"'!\"&ADDRESS(ROW(A23)-INDEX(таблПоиск11[Для расчета],MATCH(ROW(A23),таблПоиск11[Для расчета]))+3,COLUMN())))","v":"Кронштейн"},{"$f":"IF(ROW(C23)>$G$1,\"\",INDIRECT(\"'\"&INDEX(таблПоиск11[Оборудование, шифр],MATCH(ROW(C23),таблПоиск11[Для расчета]))&\"'!\"&ADDRESS(ROW(C23)-INDEX(таблПоиск11[Для расчета],MATCH(ROW(C23),таблПоиск11[Для расчета]))+3,COLUMN())))","v":1}]
[{"$f":"IF(ROW(A24)>$G$1,\"\",INDIRECT(\"'\"&INDEX(таблПоиск11[Оборудование, шифр],MATCH(ROW(A24),таблПоиск11[Для расчета]))&\"'!\"&ADDRESS(ROW(A24)-INDEX(таблПоиск11[Для расчета],MATCH(ROW(A24),таблПоиск11[Для расчета]))+3,COLUMN())))","v":"ТРП3"},{"$f":"IF(ROW(A24)>$G$1,\"\",INDIRECT(\"'\"&INDEX(таблПоиск11[Оборудование, шифр],MATCH(ROW(A24),таблПоиск11[Для расчета]))&\"'!\"&ADDRESS(ROW(A24)-INDEX(таблПоиск11[Для расчета],MATCH(ROW(A24),таблПоиск11[Для расчета]))+3,COLUMN())))","v":"Грибок"},{"$f":"IF(ROW(C24)>$G$1,\"\",INDIRECT(\"'\"&INDEX(таблПоиск11[Оборудование, шифр],MATCH(ROW(C24),таблПоиск11[Для расчета]))&\"'!\"&ADDRESS(ROW(C24)-INDEX(таблПоиск11[Для расчета],MATCH(ROW(C24),таблПоиск11[Для расчета]))+3,COLUMN())))","v":3}]
[{"$f":"IF(ROW(A25)>$G$1,\"\",INDIRECT(\"'\"&INDEX(таблПоиск11[Оборудование, шифр],MATCH(ROW(A25),таблПоиск11[Для расчета]))&\"'!\"&ADDRESS(ROW(A25)-INDEX(таблПоиск11[Для расчета],MATCH(ROW(A25),таблПоиск11[Для расчета]))+3,COLUMN())))","v":"ТРП4"},{"$f":"IF(ROW(A25)>$G$1,\"\",INDIRECT(\"'\"&INDEX(таблПоиск11[Оборудование, шифр],MATCH(ROW(A25),таблПоиск11[Для расчета]))&\"'!\"&ADDRESS(ROW(A25)-INDEX(таблПоиск11[Для расчета],MATCH(ROW(A25),таблПоиск11[Для расчета]))+3,COLUMN())))","v":"Полка"},{"$f":"IF(ROW(C25)>$G$1,\"\",INDIRECT(\"'\"&INDEX(таблПоиск11[Оборудование, шифр],MATCH(ROW(C25),таблПоиск11[Для расчета]))&\"'!\"&ADDRESS(ROW(C25)-INDEX(таблПоиск11[Для расчета],MATCH(ROW(C25),таблПоиск11[Для расчета]))+3,COLUMN())))","v":1}]
[{"$f":"IF(ROW(A26)>$G$1,\"\",INDIRECT(\"'\"&INDEX(таблПоиск11[Оборудование, шифр],MATCH(ROW(A26),таблПоиск11[Для расчета]))&\"'!\"&ADDRESS(ROW(A26)-INDEX(таблПоиск11[Для расчета],MATCH(ROW(A26),таблПоиск11[Для расчета]))+3,COLUMN())))","v":"ТРП5"},{"$f":"IF(ROW(A26)>$G$1,\"\",INDIRECT(\"'\"&INDEX(таблПоиск11[Оборудование, шифр],MATCH(ROW(A26),таблПоиск11[Для расчета]))&\"'!\"&ADDRESS(ROW(A26)-INDEX(таблПоиск11[Для расчета],MATCH(ROW(A26),таблПоиск11[Для расчета]))+3,COLUMN())))","v":"Держатель"},{"$f":"IF(ROW(C26)>$G$1,\"\",INDIRECT(\"'\"&INDEX(таблПоиск11[Оборудование, шифр],MATCH(ROW(C26),таблПоиск11[Для расчета]))&\"'!\"&ADDRESS(ROW(C26)-INDEX(таблПоиск11[Для расчета],MATCH(ROW(C26),таблПоиск11[Для расчета]))+3,COLUMN())))","v":2}]
[{"$f":"IF(ROW(A27)>$G$1,\"\",INDIRECT(\"'\"&INDEX(таблПоиск11[Оборудование, шифр],MATCH(ROW(A27),таблПоиск11[Для расчета]))&\"'!\"&ADDRESS(ROW(A27)-INDEX(таблПоиск11[Для расчета],MATCH(ROW(A27),таблПоиск11[Для расчета]))+3,COLUMN())))","v":"ТРП6"},{"$f":"IF(ROW(A27)>$G$1,\"\",INDIRECT(\"'\"&INDEX(таблПоиск11[Оборудование, шифр],MATCH(ROW(A27),таблПоиск11[Для расчета]))&\"'!\"&ADDRESS(ROW(A27)-INDEX(таблПоиск11[Для расчета],MATCH(ROW(A27),таблПоиск11[Для расчета]))+3,COLUMN())))","v":"Пластина"},{"$f":"IF(ROW(C27)>$G$1,\"\",INDIRECT(\"'\"&INDEX(таблПоиск11[Оборудование, шифр],MATCH(ROW(C27),таблПоиск11[Для расчета]))&\"'!\"&ADDRESS(ROW(C27)-INDEX(таблПоиск11[Для расчета],MATCH(ROW(C27),таблПоиск11[Для расчета]))+3,COLUMN())))","v":2}]
[{"$f":"IF(ROW(A28)>$G$1,\"\",INDIRECT(\"'\"&INDEX(таблПоиск11[Оборудование, шифр],MATCH(ROW(A28),таблПоиск11[Для расчета]))&\"'!\"&ADDRESS(ROW(A28)-INDEX(таблПоиск11[Для расчета],MATCH(ROW(A28),таблПоиск11[Для расчета]))+3,COLUMN())))","v":"ТРП7"},{"$f":"IF(ROW(A28)>$G$1,\"\",INDIRECT(\"'\"&INDEX(таблПоиск11[Оборудование, шифр],MATCH(ROW(A28),таблПоиск11[Для расчета]))&\"'!\"&ADDRESS(ROW(A28)-INDEX(таблПоиск11[Для расчета],MATCH(ROW(A28),таблПоиск11[Для расчета]))+3,COLUMN())))","v":"Трубка 16х1.5 08X18H10 L=800"},{"$f":"IF(ROW(C28)>$G$1,\"\",INDIRECT(\"'\"&INDEX(таблПоиск11[Оборудование, шифр],MATCH(ROW(C28),таблПоиск11[Для расчета]))&\"'!\"&ADDRESS(ROW(C28)-INDEX(таблПоиск11[Для расчета],MATCH(ROW(C28),таблПоиск11[Для расчета]))+3,COLUMN())))","v":1}]
[{"$f":"IF(ROW(A29)>$G$1,\"\",INDIRECT(\"'\"&INDEX(таблПоиск11[Оборудование, шифр],MATCH(ROW(A29),таблПоиск11[Для расчета]))&\"'!\"&ADDRESS(ROW(A29)-INDEX(таблПоиск11[Для расчета],MATCH(ROW(A29),таблПоиск11[Для расчета]))+3,COLUMN())))","v":"ТРП8"},{"$f":"IF(ROW(A29)>$G$1,\"\",INDIRECT(\"'\"&INDEX(таблПоиск11[Оборудование, шифр],MATCH(ROW(A29),таблПоиск11[Для расчета]))&\"'!\"&ADDRESS(ROW(A29)-INDEX(таблПоиск11[Для расчета],MATCH(ROW(A29),таблПоиск11[Для расчета]))+3,COLUMN())))","v":"Труба 48.3х1.5 08X18H10 L=780"},{"$f":"IF(ROW(C29)>$G$1,\"\",INDIRECT(\"'\"&INDEX(таблПоиск11[Оборудование, шифр],MATCH(ROW(C29),таблПоиск11[Для расчета]))&\"'!\"&ADDRESS(ROW(C29)-INDEX(таблПоиск11[Для расчета],MATCH(ROW(C29),таблПоиск11[Для расчета]))+3,COLUMN())))","v":2}]
[{"$f":"IF(ROW(A30)>$G$1,\"\",INDIRECT(\"'\"&INDEX(таблПоиск11[Оборудование, шифр],MATCH(ROW(A30),таблПоиск11[Для расчета]))&\"'!\"&ADDRESS(ROW(A30)-INDEX(таблПоиск11[Для расчета],MATCH(ROW(A30),таблПоиск11[Для расчета]))+3,COLUMN())))","v":"ТРП9"},{"$f":"IF(ROW(A30)>$G$1,\"\",INDIRECT(\"'\"&INDEX(таблПоиск11[Оборудование, шифр],MATCH(ROW(A30),таблПоиск11[Для расчета]))&\"'!\"&ADDRESS(ROW(A30)-INDEX(таблПоиск11[Для расчета],MATCH(ROW(A30),таблПоиск11[Для расчета]))+3,COLUMN())))","v":"Труба 42.4х1.5 08X18H10 L=315"},{"$f":"IF(ROW(C30)>$G$1,\"\",INDIRECT(\"'\"&INDEX(таблПоиск11[Оборудование, шифр],MATCH(ROW(C30),таблПоиск11[Для расчета]))&\"'!\"&ADDRESS(ROW(C30)-INDEX(таблПоиск11[Для расчета],MATCH(ROW(C30),таблПоиск11[Для расчета]))+3,COLUMN())))","v":1}]
[{"$f":"IF(ROW(A31)>$G$1,\"\",INDIRECT(\"'\"&INDEX(таблПоиск11[Оборудование, шифр],MATCH(ROW(A31),таблПоиск11[Для расчета]))&\"'!\"&ADDRESS(ROW(A31)-INDEX(таблПоиск11[Для расчета],MATCH(ROW(A31),таблПоиск11[Для расчета]))+3,COLUMN())))","v":""},{"$f":"IF(ROW(A31)>$G$1,\"\",INDIRECT(\"'\"&INDEX(таблПоиск11[Оборудование, шифр],MATCH(ROW(A31),таблПоиск11[Для расчета]))&\"'!\"&ADDRESS(ROW(A31)-INDEX(таблПоиск11[Для расчета],MATCH(ROW(A31),таблПоиск11[Для расчета]))+3,COLUMN())))","v":""},{"$f":"IF(ROW(C31)>$G$1,\"\",INDIRECT(\"'\"&INDEX(таблПоиск11[Оборудование, шифр],MATCH(ROW(C31),таблПоиск11[Для расчета]))&\"'!\"&ADDRESS(ROW(C31)-INDEX(таблПоиск11[Для расчета],MATCH(ROW(C31),таблПоиск11[Для расчета]))+3,COLUMN())))","v":""}]
[{"$f":"IF(ROW(A32)>$G$1,\"\",INDIRECT(\"'\"&INDEX(таблПоиск11[Оборудование, шифр],MATCH(ROW(A32),таблПоиск11[Для расчета]))&\"'!\"&ADDRESS(ROW(A32)-INDEX(таблПоиск11[Для расчета],MATCH(ROW(A32),таблПоиск11[Для расчета]))+3,COLUMN())))","v":""},{"$f":"IF(ROW(A32)>$G$1,\"\",INDIRECT(\"'\"&INDEX(таблПоиск11[Оборудование, шифр],MATCH(ROW(A32),таблПоиск11[Для расчета]))&\"'!\"&ADDRESS(ROW(A32)-INDEX(таблПоиск11[Для расчета],MATCH(ROW(A32),таблПоиск11[Для расчета]))+3,COLUMN())))","v":""},{"$f":"IF(ROW(C32)>$G$1,\"\",INDIRECT(\"'\"&INDEX(таблПоиск11[Оборудование, шифр],MATCH(ROW(C32),таблПоиск11[Для расчета]))&\"'!\"&ADDRESS(ROW(C32)-INDEX(таблПоиск11[Для расчета],MATCH(ROW(C32),таблПоиск11[Для расчета]))+3,COLUMN())))","v":""}]
[{"$f":"IF(ROW(A33)>$G$1,\"\",INDIRECT(\"'\"&INDEX(таблПоиск11[Оборудование, шифр],MATCH(ROW(A33),таблПоиск11[Для расчета]))&\"'!\"&ADDRESS(ROW(A33)-INDEX(таблПоиск11[Для расчета],MATCH(ROW(A33),таблПоиск11[Для расчета]))+3,COLUMN())))","v":""},{"$f":"IF(ROW(A33)>$G$1,\"\",INDIRECT(\"'\"&INDEX(таблПоиск11[Оборудование, шифр],MATCH(ROW(A33),таблПоиск11[Для расчета]))&\"'!\"&ADDRESS(ROW(A33)-INDEX(таблПоиск11[Для расчета],MATCH(ROW(A33),таблПоиск11[Для расчета]))+3,COLUMN())))","v":""},{"$f":"IF(ROW(C33)>$G$1,\"\",INDIRECT(\"'\"&INDEX(таблПоиск11[Оборудование, шифр],MATCH(ROW(C33),таблПоиск11[Для расчета]))&\"'!\"&ADDRESS(ROW(C33)-INDEX(таблПоиск11[Для расчета],MATCH(ROW(C33),таблПоиск11[Для расчета]))+3,COLUMN())))","v":""}]
[{"$f":"IF(ROW(A34)>$G$1,\"\",INDIRECT(\"'\"&INDEX(таблПоиск11[Оборудование, шифр],MATCH(ROW(A34),таблПоиск11[Для расчета]))&\"'!\"&ADDRESS(ROW(A34)-INDEX(таблПоиск11[Для расчета],MATCH(ROW(A34),таблПоиск11[Для расчета]))+3,COLUMN())))","v":""},{"$f":"IF(ROW(A34)>$G$1,\"\",INDIRECT(\"'\"&INDEX(таблПоиск11[Оборудование, шифр],MATCH(ROW(A34),таблПоиск11[Для расчета]))&\"'!\"&ADDRESS(ROW(A34)-INDEX(таблПоиск11[Для расчета],MATCH(ROW(A34),таблПоиск11[Для расчета]))+3,COLUMN())))","v":""},{"$f":"IF(ROW(C34)>$G$1,\"\",INDIRECT(\"'\"&INDEX(таблПоиск11[Оборудование, шифр],MATCH(ROW(C34),таблПоиск11[Для расчета]))&\"'!\"&ADDRESS(ROW(C34)-INDEX(таблПоиск11[Для расчета],MATCH(ROW(C34),таблПоиск11[Для расчета]))+3,COLUMN())))","v":""}]
[{"$f":"IF(ROW(A35)>$G$1,\"\",INDIRECT(\"'\"&INDEX(таблПоиск11[Оборудование, шифр],MATCH(ROW(A35),таблПоиск11[Для расчета]))&\"'!\"&ADDRESS(ROW(A35)-INDEX(таблПоиск11[Для расчета],MATCH(ROW(A35),таблПоиск11[Для расчета]))+3,COLUMN())))","v":""},{"$f":"IF(ROW(A35)>$G$1,\"\",INDIRECT(\"'\"&INDEX(таблПоиск11[Оборудование, шифр],MATCH(ROW(A35),таблПоиск11[Для расчета]))&\"'!\"&ADDRESS(ROW(A35)-INDEX(таблПоиск11[Для расчета],MATCH(ROW(A35),таблПоиск11[Для расчета]))+3,COLUMN())))","v":""},{"$f":"IF(ROW(C35)>$G$1,\"\",INDIRECT(\"'\"&INDEX(таблПоиск11[Оборудование, шифр],MATCH(ROW(C35),таблПоиск11[Для расчета]))&\"'!\"&ADDRESS(ROW(C35)-INDEX(таблПоиск11[Для расчета],MATCH(ROW(C35),таблПоиск11[Для расчета]))+3,COLUMN())))","v":""}]
[{"$f":"IF(ROW(A36)>$G$1,\"\",INDIRECT(\"'\"&INDEX(таблПоиск11[Оборудование, шифр],MATCH(ROW(A36),таблПоиск11[Для расчета]))&\"'!\"&ADDRESS(ROW(A36)-INDEX(таблПоиск11[Для расчета],MATCH(ROW(A36),таблПоиск11[Для расчета]))+3,COLUMN())))","v":""},{"$f":"IF(ROW(A36)>$G$1,\"\",INDIRECT(\"'\"&INDEX(таблПоиск11[Оборудование, шифр],MATCH(ROW(A36),таблПоиск11[Для расчета]))&\"'!\"&ADDRESS(ROW(A36)-INDEX(таблПоиск11[Для расчета],MATCH(ROW(A36),таблПоиск11[Для расчета]))+3,COLUMN())))","v":""},{"$f":"IF(ROW(C36)>$G$1,\"\",INDIRECT(\"'\"&INDEX(таблПоиск11[Оборудование, шифр],MATCH(ROW(C36),таблПоиск11[Для расчета]))&\"'!\"&ADDRESS(ROW(C36)-INDEX(таблПоиск11[Для расчета],MATCH(ROW(C36),таблПоиск11[Для расчета]))+3,COLUMN())))","v":""}]
[{"$f":"IF(ROW(A37)>$G$1,\"\",INDIRECT(\"'\"&INDEX(таблПоиск11[Оборудование, шифр],MATCH(ROW(A37),таблПоиск11[Для расчета]))&\"'!\"&ADDRESS(ROW(A37)-INDEX(таблПоиск11[Для расчета],MATCH(ROW(A37),таблПоиск11[Для расчета]))+3,COLUMN())))","v":""},{"$f":"IF(ROW(A37)>$G$1,\"\",INDIRECT(\"'\"&INDEX(таблПоиск11[Оборудование, шифр],MATCH(ROW(A37),таблПоиск11[Для расчета]))&\"'!\"&ADDRESS(ROW(A37)-INDEX(таблПоиск11[Для расчета],MATCH(ROW(A37),таблПоиск11[Для расчета]))+3,COLUMN())))","v":""},{"$f":"IF(ROW(C37)>$G$1,\"\",INDIRECT(\"'\"&INDEX(таблПоиск11[Оборудование, шифр],MATCH(ROW(C37),таблПоиск11[Для расчета]))&\"'!\"&ADDRESS(ROW(C37)-INDEX(таблПоиск11[Для расчета],MATCH(ROW(C37),таблПоиск11[Для расчета]))+3,COLUMN())))","v":""}]
[{"$f":"IF(ROW(A38)>$G$1,\"\",INDIRECT(\"'\"&INDEX(таблПоиск11[Оборудование, шифр],MATCH(ROW(A38),таблПоиск11[Для расчета]))&\"'!\"&ADDRESS(ROW(A38)-INDEX(таблПоиск11[Для расчета],MATCH(ROW(A38),таблПоиск11[Для расчета]))+3,COLUMN())))","v":""},{"$f":"IF(ROW(A38)>$G$1,\"\",INDIRECT(\"'\"&INDEX(таблПоиск11[Оборудование, шифр],MATCH(ROW(A38),таблПоиск11[Для расчета]))&\"'!\"&ADDRESS(ROW(A38)-INDEX(таблПоиск11[Для расчета],MATCH(ROW(A38),таблПоиск11[Для расчета]))+3,COLUMN())))","v":""},{"$f":"IF(ROW(C38)>$G$1,\"\",INDIRECT(\"'\"&INDEX(таблПоиск11[Оборудование, шифр],MATCH(ROW(C38),таблПоиск11[Для расчета]))&\"'!\"&ADDRESS(ROW(C38)-INDEX(таблПоиск11[Для расчета],MATCH(ROW(C38),таблПоиск11[Для расчета]))+3,COLUMN())))","v":""}]
[{"$f":"IF(ROW(A39)>$G$1,\"\",INDIRECT(\"'\"&INDEX(таблПоиск11[Оборудование, шифр],MATCH(ROW(A39),таблПоиск11[Для расчета]))&\"'!\"&ADDRESS(ROW(A39)-INDEX(таблПоиск11[Для расчета],MATCH(ROW(A39),таблПоиск11[Для расчета]))+3,COLUMN())))","v":""},{"$f":"IF(ROW(A39)>$G$1,\"\",INDIRECT(\"'\"&INDEX(таблПоиск11[Оборудование, шифр],MATCH(ROW(A39),таблПоиск11[Для расчета]))&\"'!\"&ADDRESS(ROW(A39)-INDEX(таблПоиск11[Для расчета],MATCH(ROW(A39),таблПоиск11[Для расчета]))+3,COLUMN())))","v":""},{"$f":"IF(ROW(C39)>$G$1,\"\",INDIRECT(\"'\"&INDEX(таблПоиск11[Оборудование, шифр],MATCH(ROW(C39),таблПоиск11[Для расчета]))&\"'!\"&ADDRESS(ROW(C39)-INDEX(таблПоиск11[Для расчета],MATCH(ROW(C39),таблПоиск11[Для расчета]))+3,COLUMN())))","v":""}]
[{"$f":"IF(ROW(A40)>$G$1,\"\",INDIRECT(\"'\"&INDEX(таблПоиск11[Оборудование, шифр],MATCH(ROW(A40),таблПоиск11[Для расчета]))&\"'!\"&ADDRESS(ROW(A40)-INDEX(таблПоиск11[Для расчета],MATCH(ROW(A40),таблПоиск11[Для расчета]))+3,COLUMN())))","v":""},{"$f":"IF(ROW(A40)>$G$1,\"\",INDIRECT(\"'\"&INDEX(таблПоиск11[Оборудование, шифр],MATCH(ROW(A40),таблПоиск11[Для расчета]))&\"'!\"&ADDRESS(ROW(A40)-INDEX(таблПоиск11[Для расчета],MATCH(ROW(A40),таблПоиск11[Для расчета]))+3,COLUMN())))","v":""},{"$f":"IF(ROW(C40)>$G$1,\"\",INDIRECT(\"'\"&INDEX(таблПоиск11[Оборудование, шифр],MATCH(ROW(C40),таблПоиск11[Для расчета]))&\"'!\"&ADDRESS(ROW(C40)-INDEX(таблПоиск11[Для расчета],MATCH(ROW(C40),таблПоиск11[Для расчета]))+3,COLUMN())))","v":""}]
[{"$f":"IF(ROW(A41)>$G$1,\"\",INDIRECT(\"'\"&INDEX(таблПоиск11[Оборудование, шифр],MATCH(ROW(A41),таблПоиск11[Для расчета]))&\"'!\"&ADDRESS(ROW(A41)-INDEX(таблПоиск11[Для расчета],MATCH(ROW(A41),таблПоиск11[Для расчета]))+3,COLUMN())))","v":""},{"$f":"IF(ROW(A41)>$G$1,\"\",INDIRECT(\"'\"&INDEX(таблПоиск11[Оборудование, шифр],MATCH(ROW(A41),таблПоиск11[Для расчета]))&\"'!\"&ADDRESS(ROW(A41)-INDEX(таблПоиск11[Для расчета],MATCH(ROW(A41),таблПоиск11[Для расчета]))+3,COLUMN())))","v":""},{"$f":"IF(ROW(C41)>$G$1,\"\",INDIRECT(\"'\"&INDEX(таблПоиск11[Оборудование, шифр],MATCH(ROW(C41),таблПоиск11[Для расчета]))&\"'!\"&ADDRESS(ROW(C41)-INDEX(таблПоиск11[Для расчета],MATCH(ROW(C41),таблПоиск11[Для расчета]))+3,COLUMN())))","v":""}]
[{"$f":"IF(ROW(A42)>$G$1,\"\",INDIRECT(\"'\"&INDEX(таблПоиск11[Оборудование, шифр],MATCH(ROW(A42),таблПоиск11[Для расчета]))&\"'!\"&ADDRESS(ROW(A42)-INDEX(таблПоиск11[Для расчета],MATCH(ROW(A42),таблПоиск11[Для расчета]))+3,COLUMN())))","v":""},{"$f":"IF(ROW(A42)>$G$1,\"\",INDIRECT(\"'\"&INDEX(таблПоиск11[Оборудование, шифр],MATCH(ROW(A42),таблПоиск11[Для расчета]))&\"'!\"&ADDRESS(ROW(A42)-INDEX(таблПоиск11[Для расчета],MATCH(ROW(A42),таблПоиск11[Для расчета]))+3,COLUMN())))","v":""},{"$f":"IF(ROW(C42)>$G$1,\"\",INDIRECT(\"'\"&INDEX(таблПоиск11[Оборудование, шифр],MATCH(ROW(C42),таблПоиск11[Для расчета]))&\"'!\"&ADDRESS(ROW(C42)-INDEX(таблПоиск11[Для расчета],MATCH(ROW(C42),таблПоиск11[Для расчета]))+3,COLUMN())))","v":""}]
[{"$f":"IF(ROW(A43)>$G$1,\"\",INDIRECT(\"'\"&INDEX(таблПоиск11[Оборудование, шифр],MATCH(ROW(A43),таблПоиск11[Для расчета]))&\"'!\"&ADDRESS(ROW(A43)-INDEX(таблПоиск11[Для расчета],MATCH(ROW(A43),таблПоиск11[Для расчета]))+3,COLUMN())))","v":""},{"$f":"IF(ROW(A43)>$G$1,\"\",INDIRECT(\"'\"&INDEX(таблПоиск11[Оборудование, шифр],MATCH(ROW(A43),таблПоиск11[Для расчета]))&\"'!\"&ADDRESS(ROW(A43)-INDEX(таблПоиск11[Для расчета],MATCH(ROW(A43),таблПоиск11[Для расчета]))+3,COLUMN())))","v":""},{"$f":"IF(ROW(C43)>$G$1,\"\",INDIRECT(\"'\"&INDEX(таблПоиск11[Оборудование, шифр],MATCH(ROW(C43),таблПоиск11[Для расчета]))&\"'!\"&ADDRESS(ROW(C43)-INDEX(таблПоиск11[Для расчета],MATCH(ROW(C43),таблПоиск11[Для расчета]))+3,COLUMN())))","v":""}]
[{"$f":"IF(ROW(A44)>$G$1,\"\",INDIRECT(\"'\"&INDEX(таблПоиск11[Оборудование, шифр],MATCH(ROW(A44),таблПоиск11[Для расчета]))&\"'!\"&ADDRESS(ROW(A44)-INDEX(таблПоиск11[Для расчета],MATCH(ROW(A44),таблПоиск11[Для расчета]))+3,COLUMN())))","v":""},{"$f":"IF(ROW(A44)>$G$1,\"\",INDIRECT(\"'\"&INDEX(таблПоиск11[Оборудование, шифр],MATCH(ROW(A44),таблПоиск11[Для расчета]))&\"'!\"&ADDRESS(ROW(A44)-INDEX(таблПоиск11[Для расчета],MATCH(ROW(A44),таблПоиск11[Для расчета]))+3,COLUMN())))","v":""},{"$f":"IF(ROW(C44)>$G$1,\"\",INDIRECT(\"'\"&INDEX(таблПоиск11[Оборудование, шифр],MATCH(ROW(C44),таблПоиск11[Для расчета]))&\"'!\"&ADDRESS(ROW(C44)-INDEX(таблПоиск11[Для расчета],MATCH(ROW(C44),таблПоиск11[Для расчета]))+3,COLUMN())))","v":""}]
[{"$f":"IF(ROW(A45)>$G$1,\"\",INDIRECT(\"'\"&INDEX(таблПоиск11[Оборудование, шифр],MATCH(ROW(A45),таблПоиск11[Для расчета]))&\"'!\"&ADDRESS(ROW(A45)-INDEX(таблПоиск11[Для расчета],MATCH(ROW(A45),таблПоиск11[Для расчета]))+3,COLUMN())))","v":""},{"$f":"IF(ROW(A45)>$G$1,\"\",INDIRECT(\"'\"&INDEX(таблПоиск11[Оборудование, шифр],MATCH(ROW(A45),таблПоиск11[Для расчета]))&\"'!\"&ADDRESS(ROW(A45)-INDEX(таблПоиск11[Для расчета],MATCH(ROW(A45),таблПоиск11[Для расчета]))+3,COLUMN())))","v":""},{"$f":"IF(ROW(C45)>$G$1,\"\",INDIRECT(\"'\"&INDEX(таблПоиск11[Оборудование, шифр],MATCH(ROW(C45),таблПоиск11[Для расчета]))&\"'!\"&ADDRESS(ROW(C45)-INDEX(таблПоиск11[Для расчета],MATCH(ROW(C45),таблПоиск11[Для расчета]))+3,COLUMN())))","v":""}]
[{"$f":"IF(ROW(A46)>$G$1,\"\",INDIRECT(\"'\"&INDEX(таблПоиск11[Оборудование, шифр],MATCH(ROW(A46),таблПоиск11[Для расчета]))&\"'!\"&ADDRESS(ROW(A46)-INDEX(таблПоиск11[Для расчета],MATCH(ROW(A46),таблПоиск11[Для расчета]))+3,COLUMN())))","v":""},{"$f":"IF(ROW(A46)>$G$1,\"\",INDIRECT(\"'\"&INDEX(таблПоиск11[Оборудование, шифр],MATCH(ROW(A46),таблПоиск11[Для расчета]))&\"'!\"&ADDRESS(ROW(A46)-INDEX(таблПоиск11[Для расчета],MATCH(ROW(A46),таблПоиск11[Для расчета]))+3,COLUMN())))","v":""},{"$f":"IF(ROW(C46)>$G$1,\"\",INDIRECT(\"'\"&INDEX(таблПоиск11[Оборудование, шифр],MATCH(ROW(C46),таблПоиск11[Для расчета]))&\"'!\"&ADDRESS(ROW(C46)-INDEX(таблПоиск11[Для расчета],MATCH(ROW(C46),таблПоиск11[Для расчета]))+3,COLUMN())))","v":""}]
[{"$f":"IF(ROW(A47)>$G$1,\"\",INDIRECT(\"'\"&INDEX(таблПоиск11[Оборудование, шифр],MATCH(ROW(A47),таблПоиск11[Для расчета]))&\"'!\"&ADDRESS(ROW(A47)-INDEX(таблПоиск11[Для расчета],MATCH(ROW(A47),таблПоиск11[Для расчета]))+3,COLUMN())))","v":""},{"$f":"IF(ROW(A47)>$G$1,\"\",INDIRECT(\"'\"&INDEX(таблПоиск11[Оборудование, шифр],MATCH(ROW(A47),таблПоиск11[Для расчета]))&\"'!\"&ADDRESS(ROW(A47)-INDEX(таблПоиск11[Для расчета],MATCH(ROW(A47),таблПоиск11[Для расчета]))+3,COLUMN())))","v":""},{"$f":"IF(ROW(C47)>$G$1,\"\",INDIRECT(\"'\"&INDEX(таблПоиск11[Оборудование, шифр],MATCH(ROW(C47),таблПоиск11[Для расчета]))&\"'!\"&ADDRESS(ROW(C47)-INDEX(таблПоиск11[Для расчета],MATCH(ROW(C47),таблПоиск11[Для расчета]))+3,COLUMN())))","v":""}]
[{"$f":"IF(ROW(A48)>$G$1,\"\",INDIRECT(\"'\"&INDEX(таблПоиск11[Оборудование, шифр],MATCH(ROW(A48),таблПоиск11[Для расчета]))&\"'!\"&ADDRESS(ROW(A48)-INDEX(таблПоиск11[Для расчета],MATCH(ROW(A48),таблПоиск11[Для расчета]))+3,COLUMN())))","v":""},{"$f":"IF(ROW(A48)>$G$1,\"\",INDIRECT(\"'\"&INDEX(таблПоиск11[Оборудование, шифр],MATCH(ROW(A48),таблПоиск11[Для расчета]))&\"'!\"&ADDRESS(ROW(A48)-INDEX(таблПоиск11[Для расчета],MATCH(ROW(A48),таблПоиск11[Для расчета]))+3,COLUMN())))","v":""},{"$f":"IF(ROW(C48)>$G$1,\"\",INDIRECT(\"'\"&INDEX(таблПоиск11[Оборудование, шифр],MATCH(ROW(C48),таблПоиск11[Для расчета]))&\"'!\"&ADDRESS(ROW(C48)-INDEX(таблПоиск11[Для расчета],MATCH(ROW(C48),таблПоиск11[Для расчета]))+3,COLUMN())))","v":""}]
[{"$f":"IF(ROW(A49)>$G$1,\"\",INDIRECT(\"'\"&INDEX(таблПоиск11[Оборудование, шифр],MATCH(ROW(A49),таблПоиск11[Для расчета]))&\"'!\"&ADDRESS(ROW(A49)-INDEX(таблПоиск11[Для расчета],MATCH(ROW(A49),таблПоиск11[Для расчета]))+3,COLUMN())))","v":""},{"$f":"IF(ROW(A49)>$G$1,\"\",INDIRECT(\"'\"&INDEX(таблПоиск11[Оборудование, шифр],MATCH(ROW(A49),таблПоиск11[Для расчета]))&\"'!\"&ADDRESS(ROW(A49)-INDEX(таблПоиск11[Для расчета],MATCH(ROW(A49),таблПоиск11[Для расчета]))+3,COLUMN())))","v":""},{"$f":"IF(ROW(C49)>$G$1,\"\",INDIRECT(\"'\"&INDEX(таблПоиск11[Оборудование, шифр],MATCH(ROW(C49),таблПоиск11[Для расчета]))&\"'!\"&ADDRESS(ROW(C49)-INDEX(таблПоиск11[Для расчета],MATCH(ROW(C49),таблПоиск11[Для расчета]))+3,COLUMN())))","v":""}]
[{"$f":"IF(ROW(A50)>$G$1,\"\",INDIRECT(\"'\"&INDEX(таблПоиск11[Оборудование, шифр],MATCH(ROW(A50),таблПоиск11[Для расчета]))&\"'!\"&ADDRESS(ROW(A50)-INDEX(таблПоиск11[Для расчета],MATCH(ROW(A50),таблПоиск11[Для расчета]))+3,COLUMN())))","v":""},{"$f":"IF(ROW(A50)>$G$1,\"\",INDIRECT(\"'\"&INDEX(таблПоиск11[Оборудование, шифр],MATCH(ROW(A50),таблПоиск11[Для расчета]))&\"'!\"&ADDRESS(ROW(A50)-INDEX(таблПоиск11[Для расчета],MATCH(ROW(A50),таблПоиск11[Для расчета]))+3,COLUMN())))","v":""},{"$f":"IF(ROW(C50)>$G$1,\"\",INDIRECT(\"'\"&INDEX(таблПоиск11[Оборудование, шифр],MATCH(ROW(C50),таблПоиск11[Для расчета]))&\"'!\"&ADDRESS(ROW(C50)-INDEX(таблПоиск11[Для расчета],MATCH(ROW(C50),таблПоиск11[Для расчета]))+3,COLUMN())))","v":""}]
[{"$f":"IF(ROW(A51)>$G$1,\"\",INDIRECT(\"'\"&INDEX(таблПоиск11[Оборудование, шифр],MATCH(ROW(A51),таблПоиск11[Для расчета]))&\"'!\"&ADDRESS(ROW(A51)-INDEX(таблПоиск11[Для расчета],MATCH(ROW(A51),таблПоиск11[Для расчета]))+3,COLUMN())))","v":""},{"$f":"IF(ROW(A51)>$G$1,\"\",INDIRECT(\"'\"&INDEX(таблПоиск11[Оборудование, шифр],MATCH(ROW(A51),таблПоиск11[Для расчета]))&\"'!\"&ADDRESS(ROW(A51)-INDEX(таблПоиск11[Для расчета],MATCH(ROW(A51),таблПоиск11[Для расчета]))+3,COLUMN())))","v":""},{"$f":"IF(ROW(C51)>$G$1,\"\",INDIRECT(\"'\"&INDEX(таблПоиск11[Оборудование, шифр],MATCH(ROW(C51),таблПоиск11[Для расчета]))&\"'!\"&ADDRESS(ROW(C51)-INDEX(таблПоиск11[Для расчета],MATCH(ROW(C51),таблПоиск11[Для расчета]))+3,COLUMN())))","v":""}]
[{"$f":"IF(ROW(A52)>$G$1,\"\",INDIRECT(\"'\"&INDEX(таблПоиск11[Оборудование, шифр],MATCH(ROW(A52),таблПоиск11[Для расчета]))&\"'!\"&ADDRESS(ROW(A52)-INDEX(таблПоиск11[Для расчета],MATCH(ROW(A52),таблПоиск11[Для расчета]))+3,COLUMN())))","v":""},{"$f":"IF(ROW(A52)>$G$1,\"\",INDIRECT(\"'\"&INDEX(таблПоиск11[Оборудование, шифр],MATCH(ROW(A52),таблПоиск11[Для расчета]))&\"'!\"&ADDRESS(ROW(A52)-INDEX(таблПоиск11[Для расчета],MATCH(ROW(A52),таблПоиск11[Для расчета]))+3,COLUMN())))","v":""},{"$f":"IF(ROW(C52)>$G$1,\"\",INDIRECT(\"'\"&INDEX(таблПоиск11[Оборудование, шифр],MATCH(ROW(C52),таблПоиск11[Для расчета]))&\"'!\"&ADDRESS(ROW(C52)-INDEX(таблПоиск11[Для расчета],MATCH(ROW(C52),таблПоиск11[Для расчета]))+3,COLUMN())))","v":""}]
[{"$f":"IF(ROW(A53)>$G$1,\"\",INDIRECT(\"'\"&INDEX(таблПоиск11[Оборудование, шифр],MATCH(ROW(A53),таблПоиск11[Для расчета]))&\"'!\"&ADDRESS(ROW(A53)-INDEX(таблПоиск11[Для расчета],MATCH(ROW(A53),таблПоиск11[Для расчета]))+3,COLUMN())))","v":""},{"$f":"IF(ROW(A53)>$G$1,\"\",INDIRECT(\"'\"&INDEX(таблПоиск11[Оборудование, шифр],MATCH(ROW(A53),таблПоиск11[Для расчета]))&\"'!\"&ADDRESS(ROW(A53)-INDEX(таблПоиск11[Для расчета],MATCH(ROW(A53),таблПоиск11[Для расчета]))+3,COLUMN())))","v":""},{"$f":"IF(ROW(C53)>$G$1,\"\",INDIRECT(\"'\"&INDEX(таблПоиск11[Оборудование, шифр],MATCH(ROW(C53),таблПоиск11[Для расчета]))&\"'!\"&ADDRESS(ROW(C53)-INDEX(таблПоиск11[Для расчета],MATCH(ROW(C53),таблПоиск11[Для расчета]))+3,COLUMN())))","v":""}]
[{"$f":"IF(ROW(A54)>$G$1,\"\",INDIRECT(\"'\"&INDEX(таблПоиск11[Оборудование, шифр],MATCH(ROW(A54),таблПоиск11[Для расчета]))&\"'!\"&ADDRESS(ROW(A54)-INDEX(таблПоиск11[Для расчета],MATCH(ROW(A54),таблПоиск11[Для расчета]))+3,COLUMN())))","v":""},{"$f":"IF(ROW(A54)>$G$1,\"\",INDIRECT(\"'\"&INDEX(таблПоиск11[Оборудование, шифр],MATCH(ROW(A54),таблПоиск11[Для расчета]))&\"'!\"&ADDRESS(ROW(A54)-INDEX(таблПоиск11[Для расчета],MATCH(ROW(A54),таблПоиск11[Для расчета]))+3,COLUMN())))","v":""},{"$f":"IF(ROW(C54)>$G$1,\"\",INDIRECT(\"'\"&INDEX(таблПоиск11[Оборудование, шифр],MATCH(ROW(C54),таблПоиск11[Для расчета]))&\"'!\"&ADDRESS(ROW(C54)-INDEX(таблПоиск11[Для расчета],MATCH(ROW(C54),таблПоиск11[Для расчета]))+3,COLUMN())))","v":""}]
[{"$f":"IF(ROW(A55)>$G$1,\"\",INDIRECT(\"'\"&INDEX(таблПоиск11[Оборудование, шифр],MATCH(ROW(A55),таблПоиск11[Для расчета]))&\"'!\"&ADDRESS(ROW(A55)-INDEX(таблПоиск11[Для расчета],MATCH(ROW(A55),таблПоиск11[Для расчета]))+3,COLUMN())))","v":""},{"$f":"IF(ROW(A55)>$G$1,\"\",INDIRECT(\"'\"&INDEX(таблПоиск11[Оборудование, шифр],MATCH(ROW(A55),таблПоиск11[Для расчета]))&\"'!\"&ADDRESS(ROW(A55)-INDEX(таблПоиск11[Для расчета],MATCH(ROW(A55),таблПоиск11[Для расчета]))+3,COLUMN())))","v":""},{"$f":"IF(ROW(C55)>$G$1,\"\",INDIRECT(\"'\"&INDEX(таблПоиск11[Оборудование, шифр],MATCH(ROW(C55),таблПоиск11[Для расчета]))&\"'!\"&ADDRESS(ROW(C55)-INDEX(таблПоиск11[Для расчета],MATCH(ROW(C55),таблПоиск11[Для расчета]))+3,COLUMN())))","v":""}]
[{"$f":"IF(ROW(A56)>$G$1,\"\",INDIRECT(\"'\"&INDEX(таблПоиск11[Оборудование, шифр],MATCH(ROW(A56),таблПоиск11[Для расчета]))&\"'!\"&ADDRESS(ROW(A56)-INDEX(таблПоиск11[Для расчета],MATCH(ROW(A56),таблПоиск11[Для расчета]))+3,COLUMN())))","v":""},{"$f":"IF(ROW(A56)>$G$1,\"\",INDIRECT(\"'\"&INDEX(таблПоиск11[Оборудование, шифр],MATCH(ROW(A56),таблПоиск11[Для расчета]))&\"'!\"&ADDRESS(ROW(A56)-INDEX(таблПоиск11[Для расчета],MATCH(ROW(A56),таблПоиск11[Для расчета]))+3,COLUMN())))","v":""},{"$f":"IF(ROW(C56)>$G$1,\"\",INDIRECT(\"'\"&INDEX(таблПоиск11[Оборудование, шифр],MATCH(ROW(C56),таблПоиск11[Для расчета]))&\"'!\"&ADDRESS(ROW(C56)-INDEX(таблПоиск11[Для расчета],MATCH(ROW(C56),таблПоиск11[Для расчета]))+3,COLUMN())))","v":""}]
[{"$f":"IF(ROW(A57)>$G$1,\"\",INDIRECT(\"'\"&INDEX(таблПоиск11[Оборудование, шифр],MATCH(ROW(A57),таблПоиск11[Для расчета]))&\"'!\"&ADDRESS(ROW(A57)-INDEX(таблПоиск11[Для расчета],MATCH(ROW(A57),таблПоиск11[Для расчета]))+3,COLUMN())))","v":""},{"$f":"IF(ROW(A57)>$G$1,\"\",INDIRECT(\"'\"&INDEX(таблПоиск11[Оборудование, шифр],MATCH(ROW(A57),таблПоиск11[Для расчета]))&\"'!\"&ADDRESS(ROW(A57)-INDEX(таблПоиск11[Для расчета],MATCH(ROW(A57),таблПоиск11[Для расчета]))+3,COLUMN())))","v":""},{"$f":"IF(ROW(C57)>$G$1,\"\",INDIRECT(\"'\"&INDEX(таблПоиск11[Оборудование, шифр],MATCH(ROW(C57),таблПоиск11[Для расчета]))&\"'!\"&ADDRESS(ROW(C57)-INDEX(таблПоиск11[Для расчета],MATCH(ROW(C57),таблПоиск11[Для расчета]))+3,COLUMN())))","v":""}]
[{"$f":"IF(ROW(A58)>$G$1,\"\",INDIRECT(\"'\"&INDEX(таблПоиск11[Оборудование, шифр],MATCH(ROW(A58),таблПоиск11[Для расчета]))&\"'!\"&ADDRESS(ROW(A58)-INDEX(таблПоиск11[Для расчета],MATCH(ROW(A58),таблПоиск11[Для расчета]))+3,COLUMN())))","v":""},{"$f":"IF(ROW(A58)>$G$1,\"\",INDIRECT(\"'\"&INDEX(таблПоиск11[Оборудование, шифр],MATCH(ROW(A58),таблПоиск11[Для расчета]))&\"'!\"&ADDRESS(ROW(A58)-INDEX(таблПоиск11[Для расчета],MATCH(ROW(A58),таблПоиск11[Для расчета]))+3,COLUMN())))","v":""},{"$f":"IF(ROW(C58)>$G$1,\"\",INDIRECT(\"'\"&INDEX(таблПоиск11[Оборудование, шифр],MATCH(ROW(C58),таблПоиск11[Для расчета]))&\"'!\"&ADDRESS(ROW(C58)-INDEX(таблПоиск11[Для расчета],MATCH(ROW(C58),таблПоиск11[Для расчета]))+3,COLUMN())))","v":""}]
[{"$f":"IF(ROW(A59)>$G$1,\"\",INDIRECT(\"'\"&INDEX(таблПоиск11[Оборудование, шифр],MATCH(ROW(A59),таблПоиск11[Для расчета]))&\"'!\"&ADDRESS(ROW(A59)-INDEX(таблПоиск11[Для расчета],MATCH(ROW(A59),таблПоиск11[Для расчета]))+3,COLUMN())))","v":""},{"$f":"IF(ROW(A59)>$G$1,\"\",INDIRECT(\"'\"&INDEX(таблПоиск11[Оборудование, шифр],MATCH(ROW(A59),таблПоиск11[Для расчета]))&\"'!\"&ADDRESS(ROW(A59)-INDEX(таблПоиск11[Для расчета],MATCH(ROW(A59),таблПоиск11[Для расчета]))+3,COLUMN())))","v":""},{"$f":"IF(ROW(C59)>$G$1,\"\",INDIRECT(\"'\"&INDEX(таблПоиск11[Оборудование, шифр],MATCH(ROW(C59),таблПоиск11[Для расчета]))&\"'!\"&ADDRESS(ROW(C59)-INDEX(таблПоиск11[Для расчета],MATCH(ROW(C59),таблПоиск11[Для расчета]))+3,COLUMN())))","v":""}]
[{"$f":"IF(ROW(A60)>$G$1,\"\",INDIRECT(\"'\"&INDEX(таблПоиск11[Оборудование, шифр],MATCH(ROW(A60),таблПоиск11[Для расчета]))&\"'!\"&ADDRESS(ROW(A60)-INDEX(таблПоиск11[Для расчета],MATCH(ROW(A60),таблПоиск11[Для расчета]))+3,COLUMN())))","v":""},{"$f":"IF(ROW(A60)>$G$1,\"\",INDIRECT(\"'\"&INDEX(таблПоиск11[Оборудование, шифр],MATCH(ROW(A60),таблПоиск11[Для расчета]))&\"'!\"&ADDRESS(ROW(A60)-INDEX(таблПоиск11[Для расчета],MATCH(ROW(A60),таблПоиск11[Для расчета]))+3,COLUMN())))","v":""},{"$f":"IF(ROW(C60)>$G$1,\"\",INDIRECT(\"'\"&INDEX(таблПоиск11[Оборудование, шифр],MATCH(ROW(C60),таблПоиск11[Для расчета]))&\"'!\"&ADDRESS(ROW(C60)-INDEX(таблПоиск11[Для расчета],MATCH(ROW(C60),таблПоиск11[Для расчета]))+3,COLUMN())))","v":""}]
[{"$f":"IF(ROW(A61)>$G$1,\"\",INDIRECT(\"'\"&INDEX(таблПоиск11[Оборудование, шифр],MATCH(ROW(A61),таблПоиск11[Для расчета]))&\"'!\"&ADDRESS(ROW(A61)-INDEX(таблПоиск11[Для расчета],MATCH(ROW(A61),таблПоиск11[Для расчета]))+3,COLUMN())))","v":""},{"$f":"IF(ROW(A61)>$G$1,\"\",INDIRECT(\"'\"&INDEX(таблПоиск11[Оборудование, шифр],MATCH(ROW(A61),таблПоиск11[Для расчета]))&\"'!\"&ADDRESS(ROW(A61)-INDEX(таблПоиск11[Для расчета],MATCH(ROW(A61),таблПоиск11[Для расчета]))+3,COLUMN())))","v":""},{"$f":"IF(ROW(C61)>$G$1,\"\",INDIRECT(\"'\"&INDEX(таблПоиск11[Оборудование, шифр],MATCH(ROW(C61),таблПоиск11[Для расчета]))&\"'!\"&ADDRESS(ROW(C61)-INDEX(таблПоиск11[Для расчета],MATCH(ROW(C61),таблПоиск11[Для расчета]))+3,COLUMN())))","v":""}]
[{"$f":"IF(ROW(A62)>$G$1,\"\",INDIRECT(\"'\"&INDEX(таблПоиск11[Оборудование, шифр],MATCH(ROW(A62),таблПоиск11[Для расчета]))&\"'!\"&ADDRESS(ROW(A62)-INDEX(таблПоиск11[Для расчета],MATCH(ROW(A62),таблПоиск11[Для расчета]))+3,COLUMN())))","v":""},{"$f":"IF(ROW(A62)>$G$1,\"\",INDIRECT(\"'\"&INDEX(таблПоиск11[Оборудование, шифр],MATCH(ROW(A62),таблПоиск11[Для расчета]))&\"'!\"&ADDRESS(ROW(A62)-INDEX(таблПоиск11[Для расчета],MATCH(ROW(A62),таблПоиск11[Для расчета]))+3,COLUMN())))","v":""},{"$f":"IF(ROW(C62)>$G$1,\"\",INDIRECT(\"'\"&INDEX(таблПоиск11[Оборудование, шифр],MATCH(ROW(C62),таблПоиск11[Для расчета]))&\"'!\"&ADDRESS(ROW(C62)-INDEX(таблПоиск11[Для расчета],MATCH(ROW(C62),таблПоиск11[Для расчета]))+3,COLUMN())))","v":""}]
[{"$f":"IF(ROW(A63)>$G$1,\"\",INDIRECT(\"'\"&INDEX(таблПоиск11[Оборудование, шифр],MATCH(ROW(A63),таблПоиск11[Для расчета]))&\"'!\"&ADDRESS(ROW(A63)-INDEX(таблПоиск11[Для расчета],MATCH(ROW(A63),таблПоиск11[Для расчета]))+3,COLUMN())))","v":""},{"$f":"IF(ROW(A63)>$G$1,\"\",INDIRECT(\"'\"&INDEX(таблПоиск11[Оборудование, шифр],MATCH(ROW(A63),таблПоиск11[Для расчета]))&\"'!\"&ADDRESS(ROW(A63)-INDEX(таблПоиск11[Для расчета],MATCH(ROW(A63),таблПоиск11[Для расчета]))+3,COLUMN())))","v":""},{"$f":"IF(ROW(C63)>$G$1,\"\",INDIRECT(\"'\"&INDEX(таблПоиск11[Оборудование, шифр],MATCH(ROW(C63),таблПоиск11[Для расчета]))&\"'!\"&ADDRESS(ROW(C63)-INDEX(таблПоиск11[Для расчета],MATCH(ROW(C63),таблПоиск11[Для расчета]))+3,COLUMN())))","v":""}]
[{"$f":"IF(ROW(A64)>$G$1,\"\",INDIRECT(\"'\"&INDEX(таблПоиск11[Оборудование, шифр],MATCH(ROW(A64),таблПоиск11[Для расчета]))&\"'!\"&ADDRESS(ROW(A64)-INDEX(таблПоиск11[Для расчета],MATCH(ROW(A64),таблПоиск11[Для расчета]))+3,COLUMN())))","v":""},{"$f":"IF(ROW(A64)>$G$1,\"\",INDIRECT(\"'\"&INDEX(таблПоиск11[Оборудование, шифр],MATCH(ROW(A64),таблПоиск11[Для расчета]))&\"'!\"&ADDRESS(ROW(A64)-INDEX(таблПоиск11[Для расчета],MATCH(ROW(A64),таблПоиск11[Для расчета]))+3,COLUMN())))","v":""},{"$f":"IF(ROW(C64)>$G$1,\"\",INDIRECT(\"'\"&INDEX(таблПоиск11[Оборудование, шифр],MATCH(ROW(C64),таблПоиск11[Для расчета]))&\"'!\"&ADDRESS(ROW(C64)-INDEX(таблПоиск11[Для расчета],MATCH(ROW(C64),таблПоиск11[Для расчета]))+3,COLUMN())))","v":""}]
[{"$f":"IF(ROW(A65)>$G$1,\"\",INDIRECT(\"'\"&INDEX(таблПоиск11[Оборудование, шифр],MATCH(ROW(A65),таблПоиск11[Для расчета]))&\"'!\"&ADDRESS(ROW(A65)-INDEX(таблПоиск11[Для расчета],MATCH(ROW(A65),таблПоиск11[Для расчета]))+3,COLUMN())))","v":""},{"$f":"IF(ROW(A65)>$G$1,\"\",INDIRECT(\"'\"&INDEX(таблПоиск11[Оборудование, шифр],MATCH(ROW(A65),таблПоиск11[Для расчета]))&\"'!\"&ADDRESS(ROW(A65)-INDEX(таблПоиск11[Для расчета],MATCH(ROW(A65),таблПоиск11[Для расчета]))+3,COLUMN())))","v":""},{"$f":"IF(ROW(C65)>$G$1,\"\",INDIRECT(\"'\"&INDEX(таблПоиск11[Оборудование, шифр],MATCH(ROW(C65),таблПоиск11[Для расчета]))&\"'!\"&ADDRESS(ROW(C65)-INDEX(таблПоиск11[Для расчета],MATCH(ROW(C65),таблПоиск11[Для расчета]))+3,COLUMN())))","v":""}]

{"sheet":"Статусы","index":1,"n_rows":9,"n_cols":1,"rows_kept":9,"cut":false,"hidden":true,"merged":[]}
["Статусы"]
["На запуске в КБ"]
["На запуске МУ"]
["Изготовление на МУ"]
["Сдано на склад ДСЕ"]
["На участке сборки"]
["Установка электрики и автоматики"]
["Испытания"]
["Упаковано"]

{"sheet":"Список оборудования","index":2,"n_rows":46,"n_cols":2,"rows_kept":46,"cut":false,"hidden":true,"merged":[]}
["Список шифров оборудовния","Список названий оборудовния"]
[]
[]
[{"$f":"IFERROR(INDEX(Оглавление,ROW()),\"\")","v":"КПУ EBS"},"Длинная печь(разогрев преформы)"]
[{"$f":"IFERROR(INDEX(Оглавление,ROW()),\"\")","v":"ДП"},"Автомат выдува"]
[{"$f":"IFERROR(INDEX(Оглавление,ROW()),\"\")","v":"ТРП"},"Автоматический группиратор бутылок"]
[{"$f":"IFERROR(INDEX(Оглавление,ROW()),\"\")","v":"ТРПШ"},"Автоматический группиратор бутылок"]
[{"$f":"IFERROR(INDEX(Оглавление,ROW()),\"\")","v":"ТРПП"},"Автоматический группиратор бутылок"]
[{"$f":"IFERROR(INDEX(Оглавление,ROW()),\"\")","v":""}]
[{"$f":"IFERROR(INDEX(Оглавление,ROW()),\"\")","v":""}]
[{"$f":"IFERROR(INDEX(Оглавление,ROW()),\"\")","v":""}]
[{"$f":"IFERROR(INDEX(Оглавление,ROW()),\"\")","v":""}]
[{"$f":"IFERROR(INDEX(Оглавление,ROW()),\"\")","v":""}]
[{"$f":"IFERROR(INDEX(Оглавление,ROW()),\"\")","v":""}]
[{"$f":"IFERROR(INDEX(Оглавление,ROW()),\"\")","v":""}]
[{"$f":"IFERROR(INDEX(Оглавление,ROW()),\"\")","v":""}]
[{"$f":"IFERROR(INDEX(Оглавление,ROW()),\"\")","v":""}]
[{"$f":"IFERROR(INDEX(Оглавление,ROW()),\"\")","v":""}]
[{"$f":"IFERROR(INDEX(Оглавление,ROW()),\"\")","v":""}]
[{"$f":"IFERROR(INDEX(Оглавление,ROW()),\"\")","v":""}]
[{"$f":"IFERROR(INDEX(Оглавление,ROW()),\"\")","v":""}]
[{"$f":"IFERROR(INDEX(Оглавление,ROW()),\"\")","v":""}]
[{"$f":"IFERROR(INDEX(Оглавление,ROW()),\"\")","v":""}]
[{"$f":"IFERROR(INDEX(Оглавление,ROW()),\"\")","v":""}]
[{"$f":"IFERROR(INDEX(Оглавление,ROW()),\"\")","v":""}]
[{"$f":"IFERROR(INDEX(Оглавление,ROW()),\"\")","v":""}]
[{"$f":"IFERROR(INDEX(Оглавление,ROW()),\"\")","v":""}]
[{"$f":"IFERROR(INDEX(Оглавление,ROW()),\"\")","v":""}]
[{"$f":"IFERROR(INDEX(Оглавление,ROW()),\"\")","v":""}]
[{"$f":"IFERROR(INDEX(Оглавление,ROW()),\"\")","v":""}]
[{"$f":"IFERROR(INDEX(Оглавление,ROW()),\"\")","v":""}]
[{"$f":"IFERROR(INDEX(Оглавление,ROW()),\"\")","v":""}]
[{"$f":"IFERROR(INDEX(Оглавление,ROW()),\"\")","v":""}]
[{"$f":"IFERROR(INDEX(Оглавление,ROW()),\"\")","v":""}]
[{"$f":"IFERROR(INDEX(Оглавление,ROW()),\"\")","v":""}]
[{"$f":"IFERROR(INDEX(Оглавление,ROW()),\"\")","v":""}]
[{"$f":"IFERROR(INDEX(Оглавление,ROW()),\"\")","v":""}]
[{"$f":"IFERROR(INDEX(Оглавление,ROW()),\"\")","v":""}]
[{"$f":"IFERROR(INDEX(Оглавление,ROW()),\"\")","v":""}]
[]
[{"$f":"IFERROR(INDEX(Оглавление,ROW()),\"\")","v":""}]
[{"$f":"IFERROR(INDEX(Оглавление,ROW()),\"\")","v":""}]
[{"$f":"IFERROR(INDEX(Оглавление,ROW()),\"\")","v":""}]
[{"$f":"IFERROR(INDEX(Оглавление,ROW()),\"\")","v":""}]
[{"$f":"IFERROR(INDEX(Оглавление,ROW()),\"\")","v":""}]
[{"$f":"IFERROR(INDEX(Оглавление,ROW()),\"\")","v":""}]

{"sheet":"КПУ EBS","index":3,"n_rows":12,"n_cols":25,"rows_kept":12,"cut":false,"hidden":false,"merged":[]}
["Шифр детали или СБ","Наименование детали или СБ","количество","Порядок запуска","Вырубка","Ленточнопильный","Гидрообразив","Лазер","Токарный","Токарный с ЧПУ","Фрезерный","Фрезерный с ЧПУ","Общее время","Расточка","Портальный фрезерный","Сварка","Шлифовальный","Зачистка","ОТК","Получение со склада","Сборка","Гибка","Упаковка, час","Сверловка","Резьба"]
[]
["EBС.01.000","Кронштейн пушки",1,null,null,null,null,null,null,null,null,null,null,null,null,null,null,null,null,null,null,null,12]
["ЕВС.01.001","Скоба",1]
["EBС.00.001","Кронштейн",1]
["EBС.00.004","Грибок",3,null,null,null,null,null,0.17,null,0.02,null,0.2,null,null,null,null,null,null,null,null,null,null,0.1,0.1]
["EBС.00.005","Полка",1]
["EBС.00.006","Держатель",2,null,null,0.05,null,null,0.25,null,0.4,null,1.1000000000000001,0.25,null,null,null,null,null,null,null,null,null,0.2,0.2]
["ЕБС.00.007","Пластина",2]
["ЕВС.01.002","Трубка 16х1.5 08X18H10 L=800",1]
["EBС.00.002","Труба 48.3х1.5 08X18H10 L=780",2]
["EBС.00.003","Труба 42.4х1.5 08X18H10 L=315",1]

{"sheet":"ДП","index":4,"n_rows":12,"n_cols":25,"rows_kept":12,"cut":false,"hidden":false,"merged":[]}
["Шифр детали или СБ","Наименование детали или СБ","количество","Порядок запуска","Вырубка","Ленточнопильный","Гидрообразив","Лазер","Токарный","Токарный с ЧПУ","Фрезерный","Фрезерный с ЧПУ","Общее время","Расточка","Портальный фрезерный","Сварка","Шлифовальный","Зачистка","ОТК","Получение со склада","Сборка","Гибка","Упаковка, час","Сверловка","Резьба"]
[]
["ДП1","Кронштейн пушки",1,null,null,null,null,null,null,null,null,null,null,null,null,null,null,null,null,null,null,null,12]
["ДП2","Скоба",1]
["ДП3","Кронштейн",1]
["ДП4","Грибок",3,null,null,null,null,null,0.17,null,0.02,null,0.2,null,null,null,null,null,null,null,null,null,null,0.1,0.1]
["ДП5","Полка",1]
["ДП6","Держатель",2,null,null,0.05,null,null,0.25,null,0.4,null,1.1000000000000001,0.25,null,null,null,null,null,null,null,null,null,0.2,0.2]
["ДП7","Пластина",2]
["ДП8","Трубка 16х1.5 08X18H10 L=800",1]
["ДП9","Труба 48.3х1.5 08X18H10 L=780",2]
["EBС.00.003","Труба 42.4х1.5 08X18H10 L=315",1]

{"sheet":"ТРП","index":5,"n_rows":12,"n_cols":25,"rows_kept":12,"cut":false,"hidden":false,"merged":[]}
["Шифр детали или СБ","Наименование детали или СБ","количество","Порядок запуска","Вырубка","Ленточнопильный","Гидрообразив","Лазер","Токарный","Токарный с ЧПУ","Фрезерный","Фрезерный с ЧПУ","Общее время","Расточка","Портальный фрезерный","Сварка","Шлифовальный","Зачистка","ОТК","Получение со склада","Сборка","Гибка","Упаковка, час","Сверловка","Резьба"]
[]
["EBС.01.000","Кронштейн пушки",1,null,null,null,null,null,null,null,null,null,null,null,null,null,null,null,null,null,null,null,12]
["ТРП1","Скоба",1]
["ТРП2","Кронштейн",1]
["ТРП3","Грибок",3,null,null,null,null,null,0.17,null,0.02,null,0.2,null,null,null,null,null,null,null,null,null,null,0.1,0.1]
["ТРП4","Полка",1]
["ТРП5","Держатель",2,null,null,0.05,null,null,0.25,null,0.4,null,1.1000000000000001,0.25,null,null,null,null,null,null,null,null,null,0.2,0.2]
["ТРП6","Пластина",2]
["ТРП7","Трубка 16х1.5 08X18H10 L=800",1]
["ТРП8","Труба 48.3х1.5 08X18H10 L=780",2]
["ТРП9","Труба 42.4х1.5 08X18H10 L=315",1]

{"sheet":"ТРПШ","index":6,"n_rows":12,"n_cols":25,"rows_kept":12,"cut":false,"hidden":false,"merged":[]}
["Шифр детали или СБ","Наименование детали или СБ","количество","Порядок запуска","Вырубка","Ленточнопильный","Гидрообразив","Лазер","Токарный","Токарный с ЧПУ","Фрезерный","Фрезерный с ЧПУ","Общее время","Расточка","Портальный фрезерный","Сварка","Шлифовальный","Зачистка","ОТК","Получение со склада","Сборка","Гибка","Упаковка, час","Сверловка","Резьба"]
[]
["ДП1","Кронштейн пушки",1,null,null,null,null,null,null,null,null,null,null,null,null,null,null,null,null,null,null,null,12]
["ТРПШ1","Скоба",1]
["ТРПШ2","Кронштейн",1]
["ТРПШ3","Грибок",3,null,null,null,null,null,0.17,null,0.02,null,0.2,null,null,null,null,null,null,null,null,null,null,0.1,0.1]
["ТРПШ4","Полка",1]
["ТРПШ5","Держатель",2,null,null,0.05,null,null,0.25,null,0.4,null,1.1000000000000001,0.25,null,null,null,null,null,null,null,null,null,0.2,0.2]
["ТРПШ6","Пластина",2]
["ТРПШ7","Трубка 16х1.5 08X18H10 L=800",1]
["ТРПШ8","Труба 48.3х1.5 08X18H10 L=780",2]
["ТРП8","Труба 42.4х1.5 08X18H10 L=315",1]

{"sheet":"ТРПП","index":7,"n_rows":12,"n_cols":25,"rows_kept":12,"cut":false,"hidden":false,"merged":[]}
["Шифр детали или СБ","Наименование детали или СБ","количество","Порядок запуска","Вырубка","Ленточнопильный","Гидрообразив","Лазер","Токарный","Токарный с ЧПУ","Фрезерный","Фрезерный с ЧПУ","Общее время","Расточка","Портальный фрезерный","Сварка","Шлифовальный","Зачистка","ОТК","Получение со склада","Сборка","Гибка","Упаковка, час","Сверловка","Резьба"]
[]
["ТРПП1","Кронштейн пушки",1,null,null,null,null,null,null,null,null,null,null,null,null,null,null,null,null,null,null,null,12]
["ТРПП2","Скоба",1]
["ТРПП3","Кронштейн",1]
["ТРПП4","Грибок",3,null,null,null,null,null,0.17,null,0.02,null,0.2,null,null,null,null,null,null,null,null,null,null,0.1,0.1]
["ТРПП5","Полка",1]
["ТРПП6","Держатель",2,null,null,0.05,null,null,0.25,null,0.4,null,1.1000000000000001,0.25,null,null,null,null,null,null,null,null,null,0.2,0.2]
["ТРПП7","Пластина",2]
["ТРПП8","Трубка 16х1.5 08X18H10 L=800",1]
["ТРПП9","Труба 48.3х1.5 08X18H10 L=780",2]
["ТРПП10","Труба 42.4х1.5 08X18H10 L=315",1]